fUSD/lending_fUSD_20250524
["ID","MTS","AMOUNT","RATE_DAILY","PERIOD"]
[362235342,1748115045453,-420.0,0.00019205,2]
[362235343,1748115045463,-420.0,0.00019205,2]
[362235346,1748115045474,-420.0,0.00019205,2]
[362235349,1748115045483,-420.0,0.00019205,2]
[362235351,1748115045494,-420.0,0.00019205,2]
[362235353,1748115045504,-420.0,0.00019205,2]
[362235355,1748115045513,-333.17742512,0.00019205,2]
[362235357,1748115045523,-420.0,0.00019205,2]
[362235360,1748115045532,-430.54461633,0.00019205,2]
[362235362,1748115045542,-435.26,0.00019205,2]
[362235364,1748115045551,-420.0,0.00019205,2]
[362235366,1748115045560,-420.0,0.00019205,2]
[362235368,1748115045570,-487.95184722,0.00019205,2]
[362235371,1748115045579,-420.0,0.00019205,2]
[362235374,1748115045589,-420.0,0.00019205,2]
[362235376,1748115045599,-420.0,0.00019205,2]
[362235378,1748115045608,-420.0,0.00019205,2]
[362235380,1748115045617,-420.0,0.00019205,2]
[362235382,1748115045627,-420.0,0.00019205,2]
[362235384,1748115045637,-420.0,0.00019205,2]
[362235386,1748115045647,-420.0,0.00019205,2]
[362235388,1748115045659,-420.0,0.00019205,2]
[362235390,1748115045673,-420.0,0.00019205,2]
[362235392,1748115045683,-420.0,0.00019205,2]
[362235393,1748115045692,-420.0,0.00019205,2]
[362235395,1748115045702,-420.0,0.00019205,2]
[362235398,1748115045713,-426.83879693,0.00019205,2]
[362235400,1748115045723,-4085.85,0.00019205,2]
[362235401,1748115045732,-609.33,0.00019205,2]
[362235403,1748115045743,-420.0,0.00019205,2]
[362235405,1748115045754,-4966.72,0.00019205,2]
[362235408,1748115045764,-420.0,0.00019205,2]
[362235410,1748115045773,-420.0,0.00019205,2]
[362235412,1748115045783,-420.0,0.00019205,2]
[362235414,1748115045793,-420.0,0.00019205,2]
[362235416,1748115045802,-422.23087129,0.00019205,2]
[362235418,1748115045812,-1111.43,0.00019205,2]
[362235420,1748115045822,-420.0,0.00019205,2]
[362235422,1748115045831,-420.0,0.00019205,2]
[362235424,1748115045841,-420.0,0.00019205,2]
[362235426,1748115045850,-420.0,0.00019205,2]
[362235428,1748115045860,-420.0,0.00019205,2]
[362235430,1748115045869,-420.0,0.00019205,2]
[362235432,1748115045879,-420.0,0.00019205,2]
[362235434,1748115045888,-420.0,0.00019205,2]
[362235436,1748115045898,-156.85609308,0.00019205,2]
[362235438,1748115045907,-510.97266457,0.00019205,2]
[362235440,1748115045918,-5698.09,0.00019205,2]
[362235442,1748115045928,-5578.62,0.00019205,2]
[362235444,1748115045938,-153.76231708,0.00019205,2]
[362235446,1748115045948,-706.63,0.00019205,2]
[362235448,1748115045958,-425.31148811,0.00019205,2]
[362235450,1748115045968,-420.0,0.00019205,2]
[362235452,1748115045978,-422.57305271,0.00019205,2]
[362235454,1748115045988,-285.39802636,0.00019205,2]
[362235456,1748115045998,-420.0,0.00019205,2]
[362235458,1748115046009,-2756.48,0.00019205,2]
[362235460,1748115046019,-420.0,0.00019205,2]
[362235462,1748115046029,-13456.5,0.00019205,2]
[362235464,1748115046038,-420.0,0.00019205,2]
[362235466,1748115046048,-420.0,0.00019205,2]
[362235468,1748115046058,-168.03335773,0.00019205,2]
[362235470,1748115046068,-413.49468985,0.00019205,2]
[362235478,1748115046139,-2241.13,0.00019205,2]
[362235480,1748115046149,-420.0,0.00019205,2]
[362235482,1748115046158,-550.11,0.00019205,2]
[362235484,1748115046168,-420.0,0.00019205,2]
[362235486,1748115046178,-420.0,0.00019205,2]
[362235488,1748115046188,-420.0,0.00019205,2]
[362235490,1748115046198,-420.0,0.00019205,2]
[362235492,1748115046207,-420.0,0.00019205,2]
[362235494,1748115046218,-1331.72,0.00019205,2]
[362235496,1748115046227,-420.0,0.00019205,2]
[362235498,1748115046236,-420.0,0.00019205,2]
[362235500,1748115046246,-420.0,0.00019205,2]
[362235502,1748115046256,-300.0,0.00019205,2]
[362235504,1748115046265,-420.0,0.00019205,2]
[362235506,1748115046274,-420.0,0.00019205,2]
[362235509,1748115046284,-420.0,0.00019205,2]
[362235512,1748115046293,-420.0,0.00019205,2]
[362235514,1748115046302,-420.0,0.00019205,2]
[362235516,1748115046311,-420.0,0.00019205,2]
[362235518,1748115046320,-570.91,0.00019205,2]
[362235520,1748115046330,-420.0,0.00019205,2]
[362235522,1748115046339,-420.0,0.00019205,2]
[362235524,1748115046347,-420.0,0.00019205,2]
[362235526,1748115046357,-420.0,0.00019205,2]
[362235528,1748115046366,-538.12733261,0.00019205,2]
[362235530,1748115046376,-420.0,0.00019205,2]
[362235532,1748115046385,-420.0,0.00019205,2]
[362235534,1748115046394,-420.0,0.00019205,2]
[362235536,1748115046403,-420.0,0.00019205,2]
[362235538,1748115046413,-186486.16,0.00019205,2]
[362235540,1748115046423,-789.83,0.00019205,2]
[362235542,1748115046432,-420.0,0.00019205,2]
[362235544,1748115046441,-207.29066471,0.00019205,2]
[362235546,1748115046451,-467.55259645,0.00019205,2]
[362235548,1748115046460,-420.0,0.00019205,2]
[362235550,1748115046469,-420.0,0.00019205,2]
[362235552,1748115046478,-420.0,0.00019205,2]
[362235554,1748115046487,-616.34,0.00019205,2]
[362235556,1748115046496,-430.43878104,0.00019205,2]
[362235558,1748115046505,-7354.43,0.00019205,2]
[362235560,1748115046515,-420.0,0.00019205,2]
[362235562,1748115046524,-420.0,0.00019205,2]
[362235564,1748115046533,-420.0,0.00019205,2]
[362235566,1748115046542,-453.96465469,0.00019205,2]
[362235568,1748115046551,-420.0,0.00019205,2]
[362235570,1748115046560,-420.0,0.00019205,2]
[362235572,1748115046569,-2348.44,0.00019205,2]
[362235574,1748115046578,-2573.5,0.00019205,2]
[362235576,1748115046587,-702.75,0.00019205,2]
[362235578,1748115046596,-340.12783029,0.00019205,2]
[362235580,1748115046605,-2178.19,0.00019205,2]
[362235582,1748115046614,-173.99886518,0.00019205,2]
[362235584,1748115046623,-420.0,0.00019205,2]
[362235585,1748115046632,-420.0,0.00019205,2]
[362235587,1748115046641,-420.0,0.00019205,2]
[362235589,1748115046650,-420.0,0.00019205,2]
[362235591,1748115046661,-420.0,0.00019205,2]
[362235593,1748115046674,-1227.57,0.00019205,2]
[362235595,1748115046683,-541.11,0.00019205,2]
[362235597,1748115046692,-177.53406854,0.00019205,2]
[362235599,1748115046702,-420.0,0.00019205,2]
[362235601,1748115046713,-2477.15,0.00019205,2]
[362235603,1748115046722,-420.0,0.00019205,2]
[362235605,1748115046731,-420.0,0.00019205,2]
[362235607,1748115046741,-420.0,0.00019205,2]
[362235609,1748115046750,-335.81211446,0.00019205,2]
[362235611,1748115046759,-420.0,0.00019205,2]
[362235613,1748115046769,-420.0,0.00019205,2]
[362235615,1748115046778,-420.0,0.00019205,2]
[362235617,1748115046788,-420.0,0.00019205,2]
[362235619,1748115046797,-420.0,0.00019205,2]
[362235621,1748115046806,-175.03372909,0.00019205,2]
[362235623,1748115046815,-420.0,0.00019205,2]
[362235625,1748115046824,-420.0,0.00019205,2]
[362235627,1748115046833,-429.87,0.00019205,2]
[362235629,1748115046842,-535.0720288,0.00019205,2]
[362235631,1748115046852,-420.0,0.00019205,2]
[362235633,1748115046861,-1089.61,0.00019205,2]
[362235635,1748115046870,-2842.27,0.00019205,2]
[362235637,1748115046879,-420.0,0.00019205,2]
[362235639,1748115046888,-164.55560173,0.00019205,2]
[362235641,1748115046898,-420.0,0.00019205,2]
[362235643,1748115046907,-420.0,0.00019205,2]
[362235645,1748115046916,-420.0,0.00019205,2]
[362235647,1748115046925,-166.63241116,0.00019205,2]
[362235649,1748115046936,-420.0,0.00019205,2]
[362235651,1748115046944,-420.0,0.00019205,2]
[362235653,1748115046953,-420.0,0.00019205,2]
[362235655,1748115046962,-420.0,0.00019205,2]
[362235657,1748115046971,-420.0,0.00019205,2]
[362235658,1748115046980,-9209.65,0.00019205,2]
[362235661,1748115046990,-420.0,0.00019205,2]
[362235663,1748115046999,-420.0,0.00019205,2]
[362235665,1748115047009,-2923.07,0.00019205,2]
[362235667,1748115047018,-420.0,0.00019205,2]
[362235669,1748115047027,-420.0,0.00019205,2]
[362235671,1748115047037,-5360.15,0.00019205,2]
[362235673,1748115047046,-471.99881712,0.00019205,2]
[362235675,1748115047056,-420.0,0.00019205,2]
[362235677,1748115047065,-420.0,0.00019205,2]
[362235679,1748115047074,-420.0,0.00019205,2]
[362235681,1748115047083,-542.97110951,0.00019205,2]
[362235683,1748115047092,-429.22999202,0.00019205,2]
[362235684,1748115047102,-420.0,0.00019205,2]
[362235686,1748115047111,-420.0,0.00019205,2]
[362235688,1748115047120,-420.0,0.00019205,2]
[362235690,1748115047129,-420.0,0.00019205,2]
[362235692,1748115047138,-420.0,0.00019205,2]
[362235694,1748115047147,-420.0,0.00019205,2]
[362235696,1748115047156,-255.73146085,0.00019205,2]
[362235698,1748115047165,-420.0,0.00019205,2]
[362235700,1748115047174,-420.0,0.00019205,2]
[362235702,1748115047185,-420.0,0.00019205,2]
[362235704,1748115047195,-420.0,0.00019205,2]
[362235706,1748115047204,-331.05564191,0.00019205,2]
[362235708,1748115047213,-420.0,0.00019205,2]
[362235710,1748115047223,-5522.98,0.00019205,2]
[362235712,1748115047232,-510.78,0.00019205,2]
[362235714,1748115047242,-541.59,0.00019205,2]
[362235716,1748115047251,-420.0,0.00019205,2]
[362235718,1748115047260,-420.0,0.00019205,2]
[362235719,1748115047269,-420.0,0.00019205,2]
[362235720,1748115047278,-420.0,0.00019205,2]
[362235721,1748115047287,-420.0,0.00019205,2]
[362235722,1748115047296,-420.0,0.00019205,2]
[362235723,1748115047305,-420.0,0.00019205,2]
[362235724,1748115047314,-420.0,0.00019205,2]
[362235725,1748115047323,-420.0,0.00019205,2]
[362235726,1748115047333,-420.0,0.00019205,2]
[362235727,1748115047342,-420.0,0.00019205,2]
[362235729,1748115047351,-420.0,0.00019205,2]
[362235731,1748115047360,-420.0,0.00019205,2]
[362235733,1748115047369,-150.0,0.00019205,2]
[362235735,1748115047378,-420.0,0.00019205,2]
[362235737,1748115047387,-420.0,0.00019205,2]
[362235739,1748115047397,-420.0,0.00019205,2]
[362235741,1748115047406,-427.11353859,0.00019205,2]
[362235743,1748115047415,-426.45269598,0.00019205,2]
[362235745,1748115047425,-425.68726748,0.00019205,2]
[362235747,1748115047435,-420.0,0.00019205,2]
[362235749,1748115047444,-420.0,0.00019205,2]
[362235751,1748115047453,-420.0,0.00019205,2]
[362235753,1748115047462,-420.0,0.00019205,2]
[362235755,1748115047471,-420.0,0.00019205,2]
[362235757,1748115047480,-420.0,0.00019205,2]
[362235759,1748115047490,-420.0,0.00019205,2]
[362235761,1748115047499,-420.0,0.00019205,2]
[362235763,1748115047508,-424.67069697,0.00019205,2]
[362235765,1748115047518,-420.0,0.00019205,2]
[362235767,1748115047527,-429.0650818,0.00019205,2]
[362235769,1748115047536,-420.0,0.00019205,2]
[362235771,1748115047545,-420.0,0.00019205,2]
[362235773,1748115047554,-675.32,0.00019205,2]
[362235775,1748115047564,-420.0,0.00019205,2]
[362235777,1748115047573,-420.0,0.00019205,2]
[362235779,1748115047582,-420.0,0.00019205,2]
[362235781,1748115047592,-420.0,0.00019205,2]
[362235783,1748115047601,-420.0,0.00019205,2]
[362235785,1748115047611,-420.0,0.00019205,2]
[362235787,1748115047620,-420.0,0.00019205,2]
[362235789,1748115047629,-439.28025685,0.00019205,2]
[362235791,1748115047638,-529.7655752,0.00019205,2]
[362235793,1748115047647,-420.0,0.00019205,2]
[362235795,1748115047657,-420.0,0.00019205,2]
[362235798,1748115047670,-420.0,0.00019205,2]
[362235799,1748115047679,-10569.08,0.00019205,2]
[362235801,1748115047688,-420.0,0.00019205,2]
[362235803,1748115047698,-420.0,0.00019205,2]
[362235805,1748115047707,-420.0,0.00019205,2]
[362235807,1748115047717,-420.0,0.00019205,2]
[362235809,1748115047726,-420.0,0.00019205,2]
[362235811,1748115047735,-420.0,0.00019205,2]
[362235813,1748115047745,-420.0,0.00019205,2]
[362235815,1748115047754,-862.52,0.00019205,2]
[362235817,1748115047762,-420.0,0.00019205,2]
[362235819,1748115047771,-420.0,0.00019205,2]
[362235821,1748115047780,-429.40087816,0.00019205,2]
[362235823,1748115047789,-420.0,0.00019205,2]
[362235825,1748115047799,-6061.71841447,0.00019212,2]
[362235827,1748115047809,-510.7439,0.00019218,2]
[362235829,1748115047818,-422.78197308,0.00019231,2]
[362235831,1748115047827,-222.071636,0.00019232,2]
[362235834,1748115047838,-152.925138,0.00019232,2]
[362235836,1748115047847,-420.0,0.00019232,2]
[362235838,1748115047856,-166.8550069,0.00019232,2]
[362235840,1748115047865,-420.0,0.00019232,2]
[362235842,1748115047876,-420.0,0.00019232,2]
[362235844,1748115047886,-424.96726103,0.00019232,2]
[362235846,1748115047895,-420.0,0.00019232,2]
[362235848,1748115047904,-420.0,0.00019232,2]
[362235850,1748115047914,-420.0,0.00019232,2]
[362235852,1748115047923,-420.0,0.00019232,2]
[362235854,1748115047932,-420.0,0.00019232,2]
[362235856,1748115047942,-420.0,0.00019232,2]
[362235858,1748115047951,-426.89947891,0.00019232,2]
[362235860,1748115047961,-420.0,0.00019232,2]
[362235862,1748115047971,-250.0,0.00019232,2]
[362235864,1748115047980,-420.0,0.00019232,2]
[362235866,1748115047989,-420.0,0.00019232,2]
[362235868,1748115047998,-420.0,0.00019232,2]
[362235870,1748115048008,-420.0,0.00019232,2]
[362235872,1748115048017,-420.0,0.00019232,2]
[362235874,1748115048026,-420.0,0.00019232,2]
[362235875,1748115048035,-420.0,0.00019232,2]
[362235878,1748115048044,-420.0,0.00019232,2]
[362235879,1748115048054,-420.0,0.00019232,2]
[362235881,1748115048063,-1241.04,0.00019232,2]
[362235883,1748115048073,-420.0,0.00019232,2]
[362235885,1748115048082,-420.0,0.00019232,2]
[362235887,1748115048091,-241.54603223,0.00019232,2]
[362235889,1748115048100,-420.0,0.00019232,2]
[362235891,1748115048110,-225.87530244,0.00019232,2]
[362235893,1748115048119,-420.0,0.00019232,2]
[362235895,1748115048128,-415.72177556,0.00019232,2]
[362235897,1748115048137,-420.0,0.00019232,2]
[362235899,1748115048147,-420.0,0.00019232,2]
[362235901,1748115048156,-420.0,0.00019232,2]
[362235903,1748115048166,-316.95209069,0.00019232,2]
[362235905,1748115048175,-420.0,0.00019232,2]
[362235907,1748115048184,-420.0,0.00019232,2]
[362235909,1748115048193,-420.0,0.00019232,2]
[362235911,1748115048203,-420.0,0.00019232,2]
[362235913,1748115048212,-420.0,0.00019232,2]
[362235915,1748115048221,-549.03017397,0.00019232,2]
[362235917,1748115048231,-427.13534444,0.00019232,2]
[362235919,1748115048239,-420.0,0.00019232,2]
[362235921,1748115048249,-861.14,0.00019232,2]
[362235923,1748115048258,-429.56,0.00019232,2]
[362235925,1748115048267,-420.0,0.00019232,2]
[362235927,1748115048276,-420.0,0.00019232,2]
[362235929,1748115048286,-420.0,0.00019232,2]
[362235931,1748115048295,-569.62,0.00019232,2]
[362235933,1748115048304,-420.0,0.00019232,2]
[362235935,1748115048313,-361.05667035,0.00019232,2]
[362235937,1748115048322,-420.0,0.00019232,2]
[362235939,1748115048331,-420.0,0.00019232,2]
[362235941,1748115048340,-420.0,0.00019232,2]
[362235943,1748115048350,-420.0,0.00019232,2]
[362235945,1748115048360,-420.0,0.00019232,2]
[362235947,1748115048369,-420.0,0.00019232,2]
[362235949,1748115048378,-1509.95,0.00019232,2]
[362235951,1748115048387,-412.34774461,0.00019232,2]
[362235953,1748115048396,-1012.03,0.00019232,2]
[362235955,1748115048405,-1201.17,0.00019232,2]
[362235957,1748115048414,-420.0,0.00019232,2]
[362235959,1748115048423,-420.0,0.00019232,2]
[362235961,1748115048433,-1007.69,0.00019232,2]
[362235963,1748115048442,-420.0,0.00019232,2]
[362235965,1748115048452,-420.0,0.00019232,2]
[362235967,1748115048462,-260.47653783,0.00019232,2]
[362235969,1748115048471,-420.0,0.00019232,2]
[362235971,1748115048481,-420.0,0.00019232,2]
[362235973,1748115048490,-420.0,0.00019232,2]
[362235975,1748115048499,-420.0,0.00019232,2]
[362235977,1748115048508,-1958.34,0.00019232,2]
[362235979,1748115048518,-420.0,0.00019232,2]
[362235981,1748115048527,-151.0,0.00019232,2]
[362235983,1748115048536,-420.0,0.00019232,2]
[362235985,1748115048546,-420.0,0.00019232,2]
[362235987,1748115048557,-153.70770696,0.00019232,2]
[362235989,1748115048566,-420.0,0.00019232,2]
[362235991,1748115048575,-420.0,0.00019232,2]
[362235993,1748115048584,-420.0,0.00019232,2]
[362235995,1748115048594,-1294.31,0.00019232,2]
[362235997,1748115048603,-420.0,0.00019232,2]
[362235999,1748115048612,-459.01005738,0.00019232,2]
[362236001,1748115048622,-420.0,0.00019232,2]
[362236003,1748115048631,-151.0,0.00019232,2]
[362236005,1748115048641,-151.0,0.00019232,2]
[362236007,1748115048651,-435.88570733,0.00019232,2]
[362236009,1748115048665,-420.0,0.00019232,2]
[362236011,1748115048674,-420.0,0.00019232,2]
[362236013,1748115048684,-420.0,0.00019232,2]
[362236015,1748115048693,-534.03628848,0.00019232,2]
[362236017,1748115048703,-420.0,0.00019232,2]
[362236019,1748115048712,-1748.26,0.00019232,2]
[362236021,1748115048722,-420.0,0.00019232,2]
[362236023,1748115048734,-420.0,0.00019232,2]
[362236025,1748115048743,-420.0,0.00019232,2]
[362236027,1748115048753,-420.0,0.00019232,2]
[362236028,1748115048763,-451.9,0.00019232,2]
[362236030,1748115048772,-420.0,0.00019232,2]
[362236032,1748115048782,-420.0,0.00019232,2]
[362236033,1748115048791,-420.0,0.00019232,2]
[362236034,1748115048801,-420.0,0.00019232,2]
[362236035,1748115048810,-420.0,0.00019232,2]
[362236036,1748115048820,-430.7903981,0.00019232,2]
[362236037,1748115048829,-420.0,0.00019232,2]
[362236038,1748115048839,-420.0,0.00019232,2]
[362236039,1748115048849,-420.0,0.00019232,2]
[362236040,1748115048859,-420.0,0.00019232,2]
[362236041,1748115048868,-151.0,0.00019232,2]
[362236042,1748115048878,-420.0,0.00019232,2]
[362236043,1748115048888,-555.82,0.00019232,2]
[362236044,1748115048898,-420.0,0.00019232,2]
[362236045,1748115048908,-420.0,0.00019232,2]
[362236046,1748115048918,-420.0,0.00019232,2]
[362236047,1748115048927,-420.0,0.00019232,2]
[362236048,1748115048937,-420.0,0.00019232,2]
[362236049,1748115048947,-536.45,0.00019232,2]
[362236050,1748115048956,-420.0,0.00019232,2]
[362236051,1748115048967,-420.0,0.00019232,2]
[362236052,1748115048977,-420.0,0.00019232,2]
[362236053,1748115048987,-151.0,0.00019232,2]
[362236054,1748115048997,-152.766216,0.00019232,2]
[362236055,1748115049008,-420.0,0.00019232,2]
[362236056,1748115049018,-440.89450536,0.00019232,2]
[362236057,1748115049028,-420.83820099,0.00019232,2]
[362236058,1748115049037,-420.0,0.00019232,2]
[362236059,1748115049047,-420.0,0.00019232,2]
[362236060,1748115049058,-420.0,0.00019232,2]
[362236061,1748115049067,-420.0,0.00019232,2]
[362236062,1748115049077,-420.0,0.00019232,2]
[362236063,1748115049086,-420.0,0.00019232,2]
[362236064,1748115049096,-420.0,0.00019232,2]
[362236065,1748115049106,-420.0,0.00019232,2]
[362236066,1748115049116,-420.0,0.00019232,2]
[362236067,1748115049127,-420.0,0.00019232,2]
[362236068,1748115049136,-420.0,0.00019232,2]
[362236069,1748115049146,-151.0,0.00019232,2]
[362236070,1748115049156,-420.0,0.00019232,2]
[362236071,1748115049166,-420.0,0.00019232,2]
[362236073,1748115049175,-456.324027,0.00019232,2]
[362236075,1748115049185,-151.0,0.00019232,2]
[362236076,1748115049195,-420.0,0.00019232,2]
[362236077,1748115049204,-420.0,0.00019232,2]
[362236078,1748115049214,-420.0,0.00019232,2]
[362236079,1748115049223,-456.324027,0.00019232,2]
[362236080,1748115049233,-558.34016873,0.00019232,2]
[362236081,1748115049243,-420.0,0.00019232,2]
[362236082,1748115049253,-420.0,0.00019232,2]
[362236083,1748115049262,-420.0,0.00019232,2]
[362236084,1748115049272,-420.0,0.00019232,2]
[362236085,1748115049281,-226.75417437,0.00019232,2]
[362236086,1748115049291,-560.44825089,0.00019232,2]
[362236087,1748115049302,-318.22793637,0.00019232,2]
[362236088,1748115049311,-420.0,0.00019232,2]
[362236089,1748115049321,-420.0,0.00019232,2]
[362236090,1748115049335,-555.58929111,0.00019232,2]
[362236091,1748115049345,-420.0,0.00019232,2]
[362236092,1748115049355,-420.0,0.00019232,2]
[362236093,1748115049365,-420.0,0.00019232,2]
[362236094,1748115049375,-474.91762976,0.00019232,2]
[362236095,1748115049385,-420.0,0.00019232,2]
[362236096,1748115049395,-420.0,0.00019232,2]
[362236097,1748115049405,-420.0,0.00019232,2]
[362236098,1748115049415,-420.0,0.00019232,2]
[362236099,1748115049425,-420.0,0.00019232,2]
[362236100,1748115049435,-420.0,0.00019232,2]
[362236101,1748115049444,-538.03890185,0.00019232,2]
[362236102,1748115049454,-420.0,0.00019232,2]
[362236103,1748115049463,-420.0,0.00019232,2]
[362236104,1748115049473,-420.0,0.00019232,2]
[362236105,1748115049482,-426.39853467,0.00019232,2]
[362236106,1748115049492,-420.0,0.00019232,2]
[362236107,1748115049501,-420.0,0.00019232,2]
[362236108,1748115049511,-420.0,0.00019232,2]
[362236109,1748115049521,-151.0,0.00019232,2]
[362236110,1748115049530,-420.0,0.00019232,2]
[362236111,1748115049539,-420.0,0.00019232,2]
[362236112,1748115049548,-426.85081385,0.00019232,2]
[362236113,1748115049558,-420.0,0.00019232,2]
[362236114,1748115049568,-151.0,0.00019232,2]
[362236115,1748115049578,-420.0,0.00019232,2]
[362236116,1748115049587,-420.0,0.00019232,2]
[362236117,1748115049596,-420.0,0.00019232,2]
[362236118,1748115049606,-435.26,0.00019232,2]
[362236119,1748115049616,-420.0,0.00019232,2]
[362236120,1748115049625,-151.0,0.00019232,2]
[362236121,1748115049635,-477.41838097,0.00019232,2]
[362236122,1748115049644,-420.0,0.00019232,2]
[362236123,1748115049654,-151.0,0.00019232,2]
[362236124,1748115049665,-420.0,0.00019232,2]
[362236125,1748115049676,-420.0,0.00019232,2]
[362236126,1748115049685,-151.0,0.00019232,2]
[362236127,1748115049695,-420.0,0.00019232,2]
[362236128,1748115049705,-552.35431268,0.00019232,2]
[362236129,1748115049715,-420.0,0.00019232,2]
[362236130,1748115049725,-420.0,0.00019232,2]
[362236131,1748115049734,-420.0,0.00019232,2]
[362236132,1748115049746,-4085.85,0.00019232,2]
[362236133,1748115049756,-609.33,0.00019232,2]
[362236134,1748115049767,-420.0,0.00019232,2]
[362236135,1748115049777,-4966.72,0.00019232,2]
[362236136,1748115049787,-516.79819074,0.00019232,2]
[362236137,1748115049798,-151.0,0.00019232,2]
[362236138,1748115049807,-420.0,0.00019232,2]
[362236139,1748115049816,-420.0,0.00019232,2]
[362236140,1748115049826,-1111.43,0.00019232,2]
[362236141,1748115049836,-420.0,0.00019232,2]
[362236142,1748115049846,-420.0,0.00019232,2]
[362236143,1748115049856,-151.0,0.00019232,2]
[362236144,1748115049865,-420.0,0.00019232,2]
[362236145,1748115049875,-151.0,0.00019232,2]
[362236146,1748115049885,-420.0,0.00019232,2]
[362236147,1748115049895,-420.0,0.00019232,2]
[362236148,1748115049904,-5698.09,0.00019232,2]
[362236149,1748115049914,-5578.62,0.00019232,2]
[362236150,1748115049924,-706.63,0.00019232,2]
[362236151,1748115049934,-151.0,0.00019232,2]
[362236152,1748115049943,-151.0,0.00019232,2]
[362236153,1748115049953,-420.0,0.00019232,2]
[362236154,1748115049963,-2756.48,0.00019232,2]
[362236155,1748115049973,-13456.5,0.00019232,2]
[362236156,1748115049983,-420.0,0.00019232,2]
[362236157,1748115049993,-420.0,0.00019232,2]
[362236158,1748115050003,-2241.13,0.00019232,2]
[362236159,1748115050013,-151.0,0.00019232,2]
[362236160,1748115050023,-550.11,0.00019232,2]
[362236161,1748115050033,-420.0,0.00019232,2]
[362236162,1748115050043,-420.0,0.00019232,2]
[362236163,1748115050053,-151.0,0.00019232,2]
[362236164,1748115050063,-420.0,0.00019232,2]
[362236165,1748115050073,-420.0,0.00019232,2]
[362236166,1748115050083,-1331.72,0.00019232,2]
[362236167,1748115050093,-442.36120664,0.00019232,2]
[362236168,1748115050103,-420.0,0.00019232,2]
[362236169,1748115050113,-420.0,0.00019232,2]
[362236170,1748115050123,-420.0,0.00019232,2]
[362236171,1748115050132,-420.0,0.00019232,2]
[362236172,1748115050142,-420.0,0.00019232,2]
[362236173,1748115050152,-420.0,0.00019232,2]
[362236174,1748115050162,-570.91,0.00019232,2]
[362236175,1748115050172,-420.0,0.00019232,2]
[362236176,1748115050182,-420.0,0.00019232,2]
[362236177,1748115050193,-420.0,0.00019232,2]
[362236178,1748115050202,-420.0,0.00019232,2]
[362236179,1748115050212,-420.0,0.00019232,2]
[362236180,1748115050222,-420.0,0.00019232,2]
[362236181,1748115050232,-420.0,0.00019232,2]
[362236182,1748115050242,-151.0,0.00019232,2]
[362236183,1748115050252,-186486.16,0.00019232,2]
[362236184,1748115050263,-789.83,0.00019232,2]
[362236185,1748115050274,-199.64666705,0.00019232,2]
[362236186,1748115050284,-420.0,0.00019232,2]
[362236187,1748115050295,-420.0,0.00019232,2]
[362236188,1748115050308,-616.34,0.00019232,2]